bitfinex/quotes_SOLUSD_20250928
["timestamp","ask_amount","ask_price","bid_price","bid_amount"]
[1759056344375,0.69,201.41,201.37,15.61061107]
[1759056344896,0.69,201.4,201.36,38.12]
[1759056345193,0.69,201.39,201.36,53.73135518]
[1759056345410,0.69,201.38,201.36,14.94135518]
[1759056345581,0.69,201.37,201.31,0.67]
[1759056347104,0.69,201.37,201.31,5.63736849]
[1759056347296,0.69,201.36,201.31,5.63736849]
[1759056347605,0.69,201.36,201.32,0.67]
[1759056349102,4.96575785,201.38,201.32,0.67]
[1759056349295,0.69,201.35,201.29,53.75507685]
[1759056349501,0.69,201.34,201.29,53.75507685]
[1759056349697,0.69,201.33,201.29,43.10795588]
[1759056350002,0.69,201.33,201.3,0.67]
[1759056351312,4.96616184,201.37,201.28,14.94656602]
[1759056351510,0.69,201.32,201.28,38.14]
[1759056351690,0.69,201.32,201.28,38.83]
[1759056351884,0.69,201.32,201.28,38.14]
[1759056352205,0.69,201.32,201.29,0.69]
[1759056358209,0.69,201.31,201.26,38.14]
[1759056358387,0.69,201.3,201.26,38.14]
[1759056358707,0.69,201.29,201.26,38.14]
[1759056358903,30.96673056,201.34,201.23,14.94954528]
[1759056358904,30.96673056,201.34,201.23,19.9189239]
[1759056359090,0.69,201.33,201.25,38.14]
[1759056359291,0.69,201.32,201.25,38.83]
[1759056359492,0.69,201.31,201.25,38.83]
[1759056359692,0.69,201.3,201.25,38.83]
[1759056360092,0.69,201.29,201.26,0.69]
[1759056360498,4.96720559,201.33,201.26,0.69]
[1759056360700,0.69,201.32,201.26,0.69]
[1759056361302,5.6572248,201.32,201.26,0.69]
[1759056361811,5.6572248,201.32,201.23,14.94954528]
[1759056361992,0.69,201.31,201.24,38.14]
[1759056362407,26.0,201.34,201.25,0.69]
[1759056362594,0.69,201.33,201.25,38.83]
[1759056362802,26.0,201.37,201.25,38.83]
[1759056362803,0.69,201.32,201.25,0.69]
[1759056363415,5.65734408,201.32,201.25,0.69]
[1759056364096,5.65734408,201.32,201.24,38.14]
[1759056364306,26.69,201.31,201.24,38.14]
[1759056364500,0.69,201.3,201.24,38.83]
[1759056364709,0.69,201.29,201.24,38.83]
[1759056364910,0.69,201.28,201.24,38.83]
[1759056365515,0.69,201.28,201.25,0.69]
[1759056370217,0.66,201.3,201.26,0.7]
[1759056370419,0.66,201.29,201.26,0.7]
[1759056372409,0.66,201.29,201.24,38.14]
[1759056372617,0.66,201.28,201.21,0.7]
[1759056372806,26.0,201.27,201.19,0.7]
[1759056373008,0.66,201.26,201.18,38.14]
[1759056373208,0.66,201.25,201.18,38.14]
[1759056373420,0.66,201.24,201.17,15.65476185]
[1759056373620,0.66,201.23,201.17,38.84]
[1759056374134,0.66,201.22,201.17,38.84]
[1759056374309,0.66,201.21,201.17,38.84]
[1759056375910,0.66,201.2,201.17,0.7]
[1759056376413,0.66,201.22,201.17,0.7]
[1759056376630,0.66,201.21,201.17,0.7]
[1759056377614,0.66,201.2,201.17,0.7]
[1759056379011,30.96925584,201.24,201.17,0.7]
[1759056379012,0.66,201.22,201.17,0.7]
[1759056379212,0.66,201.21,201.17,0.7]
[1759056379815,0.66,201.21,201.18,0.7]
[1759056380618,0.66,201.21,201.16,43.13111473]
[1759056380814,0.66,201.21,201.17,0.66]
[1759056385123,30.96921099,201.24,201.17,0.66]
[1759056385367,0.66,201.2,201.17,0.66]
[1759056386356,30.96921099,201.24,201.17,0.66]
[1759056386522,0.66,201.21,201.17,0.66]
[1759056387825,0.66,201.2,201.17,0.66]
[1759056388235,0.66,201.2,201.15,15.05699862]
[1759056388518,0.66,201.19,201.15,0.1]
[1759056392824,0.66,201.19,201.15,0.76]
[1759056394127,0.66,201.18,201.15,0.76]
[1759056394446,0.66,201.19,201.15,0.76]
[1759056395142,26.0,201.21,201.15,0.76]
[1759056395337,0.66,201.19,201.15,0.76]
[1759056395719,4.96962014,201.23,201.15,0.76]
[1759056395926,26.0,201.2,201.15,0.76]
[1759056396236,0.66,201.19,201.15,0.76]
[1759056397050,0.66,201.18,201.15,0.76]
[1759056399445,0.66,201.17,201.15,0.1]
[1759056417235,1.99496272,201.21,201.16,0.71]
[1759056417441,26.67,201.2,201.17,0.71]
[1759056418872,26.67,201.2,201.16,0.71]
[1759056419064,26.0,201.19,201.16,0.71]
[1759056421374,0.67,201.19,201.16,0.71]
[1759056421572,38.16,201.22,201.15,0.1]
[1759056421747,0.67,201.21,201.17,0.71]
[1759056421947,0.67,201.21,201.15,0.1]
[1759056422247,0.67,201.21,201.16,0.71]
[1759056422663,0.67,201.2,201.16,0.71]
[1759056425080,26.0,201.18,201.15,0.1]
[1759056425384,64.16,201.18,201.15,0.1]
[1759056425551,0.67,201.17,201.15,0.1]
[1759056427877,5.64098809,201.17,201.15,0.1]
[1759056430957,0.66,201.16,201.15,0.1]
[1759056437286,4.01100891,201.16,201.15,0.1]
[1759056437789,3.35100891,201.16,201.15,0.1]
[1759056437991,4.01100891,201.16,201.15,0.1]
[1759056439188,3.35100891,201.16,201.15,0.1]
[1759056439397,3.35100891,201.2,201.15,0.79]
[1759056439572,0.66,201.2,201.15,2.78436592]
[1759056439772,0.66,201.2,201.16,0.69]
[1759056440090,0.66,201.2,201.15,0.79]
[1759056440266,0.66,201.2,201.15,2.88436592]
[1759056440472,0.66,201.19,201.15,0.79]
[1759056441186,3.35233602,201.2,201.16,0.68]
[1759056441488,3.35294421,201.19,201.16,0.68]
[1759056441688,0.66,201.2,201.16,0.68]
[1759056441882,3.35294421,201.19,201.16,0.68]
[1759056442088,0.66,201.2,201.16,0.68]
[1759056442286,3.35295756,201.19,201.16,0.68]
[1759056442469,0.66,201.2,201.16,0.68]
[1759056442667,3.35376945,201.19,201.15,0.1]
[1759056442890,0.66,201.19,201.15,0.78]
[1759056443791,43.13003277,201.21,201.16,0.68]
[1759056443988,4.01455835,201.2,201.16,0.68]
[1759056444188,3.35455835,201.19,201.16,0.68]
[1759056444392,0.66,201.2,201.16,0.68]
[1759056444595,3.35512715,201.19,201.16,0.68]
[1759056444900,0.66,201.19,201.15,0.78]
[1759056445085,0.66,201.19,201.15,0.1]
[1759056445293,4.01587138,201.18,201.15,0.78]
[1759056445592,0.66,201.18,201.15,0.78]
[1759056446195,0.66,201.2,201.15,0.1]
[1759056446381,3.35598155,201.19,201.16,0.68]
[1759056446582,3.35598155,201.18,201.16,0.68]
[1759056446783,0.66,201.2,201.16,0.68]
[1759056446982,3.35598207,201.19,201.16,0.68]
[1759056447176,3.35598207,201.18,201.16,0.68]
[1759056447377,0.66,201.2,201.16,0.68]
[1759056447572,3.35586159,201.19,201.16,0.68]
[1759056447779,0.66,201.2,201.16,0.68]
[1759056447994,3.35580824,201.19,201.16,0.68]
[1759056448187,0.66,201.2,201.16,0.68]
[1759056448498,4.01566063,201.19,201.16,0.68]
[1759056448687,0.66,201.19,201.16,0.68]
[1759056450691,38.82,201.21,201.17,0.68]
[1759056450899,3.35530723,201.2,201.17,0.68]
[1759056451097,4.17395556,201.31,201.18,13.59559401]
[1759056451285,0.66,201.28,201.19,0.68]
[1759056451486,3.35135288,201.27,201.19,0.68]
[1759056451689,26.66,201.28,201.19,0.68]
[1759056451996,3.35119591,201.27,201.2,14.95252573]
[1759056452195,0.66,201.27,201.21,0.68]
[1759056452495,26.66,201.27,201.21,0.68]
[1759056452879,26.66,201.27,201.22,14.95252573]
[1759056453194,26.66,201.27,201.23,0.68]
[1759056453394,26.66,201.27,201.24,0.68]
[1759056455300,0.66,201.27,201.24,0.68]
[1759056456596,0.66,201.26,201.22,0.68]
[1759056456798,26.0,201.28,201.22,0.68]
[1759056456998,0.66,201.25,201.21,14.9540164]
[1759056457177,0.66,201.24,201.21,14.9540164]
[1759056457380,0.66,201.24,201.21,15.6340164]
[1759056457587,26.0,201.28,201.21,15.6340164]
[1759056457588,0.66,201.26,201.21,15.6340164]
[1759056457788,0.66,201.25,201.21,15.6340164]
[1759056458003,0.66,201.25,201.22,0.68]
[1759056458806,0.66,201.25,201.21,13.00285272]
[1759056460889,0.66,201.25,201.21,13.59285272]
[1759056461789,0.66,201.25,201.21,0.59]
[1759056462408,0.66,201.28,201.21,5.55988955]
[1759056462710,0.66,201.31,201.22,38.79]
[1759056462907,0.66,201.31,201.23,0.59]
[1759056463090,26.0,201.32,201.23,0.59]
[1759056463292,0.66,201.33,201.23,0.59]
[1759056463502,26.0,201.32,201.24,17.39216854]
[1759056463708,26.0,201.32,201.25,0.59]
[1759056464016,26.66,201.33,201.25,15.53880036]
[1759056464305,26.66,201.33,201.26,0.59]
[1759056464715,26.66,201.33,201.27,19.91719397]
[1759056464898,26.66,201.33,201.27,20.50719397]
[1759056465430,0.66,201.32,201.27,20.50719397]
[1759056465710,0.66,201.31,201.27,0.59]
[1759056468515,0.66,201.31,201.27,5.55845027]
[1759056469812,0.66,201.31,201.27,0.59]
[1759056471125,0.66,201.31,201.24,0.59]
[1759056471308,0.66,201.31,201.26,14.94880036]
[1759056471628,0.72,201.3,201.24,0.59]
[1759056471831,0.72,201.3,201.25,14.95029029]
[1759056472005,0.72,201.29,201.25,15.54029029]
[1759056475828,0.72,201.3,201.26,0.59]
[1759056476028,0.72,201.29,201.25,14.95029029]
[1759056476213,0.72,201.29,201.25,15.54029029]
[1759056476814,0.72,201.29,201.25,14.95029029]
[1759056477020,0.72,201.28,201.23,43.75940206]
[1759056477230,0.72,201.28,201.24,0.59]
[1759056477430,0.72,201.28,201.24,15.54029028]
[1759056478937,26.0,201.32,201.24,19.91945147]
[1759056479132,0.72,201.29,201.24,5.55916119]
[1759056479336,0.72,201.29,201.25,15.54029029]
[1759056485146,0.72,201.28,201.25,14.95029029]
[1759056485332,0.72,201.27,201.21,38.14]
[1759056485519,0.72,201.27,201.23,14.9517805]
[1759056485723,0.72,201.26,201.23,14.9517805]
[1759056485925,0.72,201.25,201.21,43.12988812]
[1759056486217,0.72,201.25,201.22,14.95252573]
[1759056486837,0.72,201.27,201.22,15.54252573]
[1759056487152,0.72,201.27,201.23,0.59]
[1759056487731,26.0,201.31,201.24,0.59]
[1759056488059,0.72,201.3,201.24,0.59]
[1759056488359,26.72,201.3,201.24,0.59]
[1759056488852,26.72,201.3,201.24,5.55908554]
[1759056489230,0.72,201.29,201.24,5.55908554]
[1759056489550,0.72,201.33,201.25,38.73]
[1759056489735,0.72,201.33,201.26,0.59]
[1759056490492,0.72,201.33,201.27,14.94880036]
[1759056490834,0.72,201.33,201.28,0.59]
[1759056491248,0.72,201.33,201.28,20.50546309]
[1759056492528,0.72,201.33,201.28,19.91546309]
[1759056492851,0.72,201.33,201.29,0.59]
[1759056493531,0.72,201.33,201.29,5.55792382]
[1759056494658,0.72,201.33,201.29,0.59]
[1759056494961,0.69,201.32,201.26,43.10869567]
[1759056495160,0.69,201.31,201.26,43.69869567]
[1759056495457,0.69,201.31,201.26,58.64749603]
[1759056495656,0.69,201.31,201.27,0.59]
[1759056500056,0.69,201.3,201.26,14.94880036]
[1759056500260,0.69,201.3,201.26,15.53880036]
[1759056500962,3.34033675,201.33,201.26,19.91747744]
[1759056501258,0.68,201.32,201.26,20.50747744]
[1759056501448,0.68,201.32,201.26,15.53880036]
[1759056501643,0.68,201.31,201.26,15.53880036]
[1759056502039,0.68,201.31,201.26,14.94880036]
[1759056502242,0.68,201.31,201.27,0.59]
[1759056504968,0.68,201.33,201.28,0.59]
[1759056505346,0.68,201.33,201.29,0.59]
[1759056506176,26.0,201.34,201.29,4.96788413]
[1759056506383,0.68,201.34,201.3,0.59]
[1759056507044,4.03280419,201.35,201.31,0.59]
[1759056507249,0.68,201.35,201.31,0.59]
[1759056508574,47.2717379,201.4,201.29,53.08656603]
[1759056508779,0.68,201.37,201.29,43.69794021]
[1759056509079,4.03269057,201.36,201.3,14.9458214]
[1759056509243,26.0,201.38,201.3,14.9458214]
[1759056509449,0.68,201.35,201.3,14.9458214]
[1759056509754,4.03187735,201.34,201.26,5.55848245]
[1759056509958,0.68,201.33,201.27,38.12]
[1759056510158,0.68,201.32,201.27,14.9480555]
[1759056510360,0.68,201.31,201.25,178.37890125]
[1759056510555,0.68,201.3,201.25,43.67890125]
[1759056510751,0.68,201.29,201.26,14.94880036]
[1759056510959,0.68,201.29,201.22,38.71]
[1759056511153,0.68,201.28,201.21,14.95178051]
[1759056511345,0.68,201.27,201.21,14.95178051]
[1759056511545,0.68,201.26,201.19,38.14]
[1759056511740,0.68,201.25,201.19,38.14]
[1759056512155,0.68,201.24,201.19,38.14]
[1759056512360,0.68,201.23,201.19,53.68327103]
[1759056512667,4.96888855,201.26,201.19,14.95327103]
[1759056512872,4.96888855,201.26,201.15,39.69559401]
[1759056512873,0.68,201.22,201.15,0.1]
[1759056513053,0.68,201.22,201.16,38.16]
[1759056513248,0.68,201.21,201.16,38.16]
[1759056513461,0.68,201.2,201.16,38.16]
[1759056513960,0.68,201.22,201.16,38.75]
[1759056515201,0.68,201.21,201.16,0.59]
[1759056515484,0.68,201.2,201.16,38.75]
[1759056516899,4.96925552,201.24,201.16,38.75]
[1759056517094,0.68,201.21,201.16,38.75]
[1759056517976,0.68,201.21,201.16,43.72113401]
[1759056518180,0.68,201.24,201.16,43.13113401]
[1759056518372,0.68,201.24,201.17,0.59]
[1759056518567,0.68,201.24,201.17,5.56086303]
[1759056518777,0.68,201.23,201.17,5.56086303]
[1759056519170,0.68,201.23,201.17,4.97086303]
[1759056519399,0.68,201.23,201.18,0.59]
[1759056519570,0.68,201.23,201.19,0.59]
[1759056520296,0.68,201.24,201.17,4.97086303]
[1759056520802,0.68,201.24,201.18,0.59]
[1759056523695,0.68,201.24,201.16,38.75]
[1759056523876,0.68,201.23,201.16,38.75]
[1759056524079,0.68,201.22,201.16,38.75]
[1759056524588,0.68,201.22,201.16,43.72110464]
[1759056527797,0.68,201.22,201.16,5.56110464]
[1759056528106,0.68,201.22,201.17,38.14]
[1759056528306,0.68,201.22,201.18,0.59]
[1759056531406,0.68,201.22,201.17,43.70088213]
[1759056531407,0.71,201.22,201.17,43.70088213]
[1759056531907,26.0,201.25,201.17,43.70088213]
[1759056532101,0.71,201.22,201.17,43.70088213]
[1759056532292,0.71,201.25,201.18,0.59]
[1759056533498,0.71,201.25,201.19,4.97042596]
[1759056533708,0.71,201.25,201.19,5.56042596]
[1759056533910,30.96846011,201.27,201.19,5.56042596]
[1759056534098,0.71,201.24,201.19,5.56042596]
[1759056534297,30.96846011,201.27,201.19,5.56042596]
[1759056534491,0.71,201.26,201.19,5.56042596]
[1759056534805,0.71,201.25,201.19,5.56042596]
[1759056534988,30.96846011,201.27,201.19,5.56042596]
[1759056535188,0.71,201.24,201.19,5.56042596]
[1759056535395,0.71,201.23,201.19,5.56042596]
[1759056540520,0.71,201.26,201.2,0.59]
[1759056541008,26.71,201.26,201.2,0.59]
[1759056543135,26.71,201.26,201.17,4.97074207]
[1759056543313,0.71,201.25,201.18,38.14]
[1759056543497,0.71,201.24,201.18,38.14]
[1759056543697,30.96872332,201.26,201.18,38.14]
[1759056543698,0.71,201.23,201.18,38.14]
[1759056543915,0.71,201.22,201.18,38.14]
[1759056544116,0.71,201.23,201.18,38.73]
[1759056544603,0.71,201.22,201.18,38.73]
[1759056545200,0.71,201.24,201.19,0.59]
[1759056545410,0.71,201.24,201.18,4.97059012]
[1759056545602,0.71,201.23,201.18,43.11059012]
[1759056545900,0.71,201.23,201.19,0.59]
[1759056546504,0.71,201.23,201.19,5.56040613]
[1759056547028,0.71,201.23,201.19,43.70040613]
[1759056547403,26.0,201.26,201.2,0.59]
[1759056547603,0.71,201.25,201.2,0.59]
[1759056548030,0.71,201.25,201.19,43.70040613]
[1759056548223,26.0,201.26,201.19,43.70040613]
[1759056548538,0.71,201.25,201.19,43.70040613]
[1759056548826,0.71,201.24,201.19,43.70040613]
[1759056549802,0.71,201.23,201.19,38.14]
[1759056549997,0.71,201.23,201.18,4.97064874]
[1759056550196,0.71,201.23,201.19,38.14]
[1759056550427,26.0,201.26,201.19,38.73]
[1759056550612,0.69,201.24,201.19,38.73]
[1759056551221,0.69,201.24,201.19,43.7004147]
[1759056551426,0.69,201.24,201.19,43.1104147]
[1759056551635,0.69,201.23,201.19,0.59]
[1759056552010,26.0,201.26,201.18,43.11063322]
[1759056552233,0.69,201.22,201.18,43.70063322]
[1759056553929,0.69,201.23,201.18,43.70063322]
[1759056556316,0.69,201.23,201.18,43.11063322]
[1759056556613,0.69,201.23,201.19,0.59]
[1759056557007,26.0,201.26,201.19,5.56033578]
[1759056557218,3.35943666,201.25,201.2,0.59]
[1759056557425,0.69,201.27,201.2,0.59]
[1759056557607,3.36001015,201.26,201.2,0.59]
[1759056557803,3.36001015,201.25,201.2,0.59]
[1759056558004,26.69,201.27,201.2,0.59]
[1759056558231,3.36001128,201.26,201.21,4.96993191]
[1759056558426,3.36001128,201.25,201.22,0.59]
[1759056558616,0.69,201.26,201.22,0.59]
[1759056558818,3.35962279,201.25,201.22,0.59]
[1759056559011,0.69,201.26,201.22,0.59]
[1759056559236,3.35962279,201.25,201.22,0.59]
[1759056559417,0.69,201.26,201.22,0.59]
[1759056559612,26.69,201.28,201.23,0.59]
[1759056559917,3.35911071,201.27,201.22,43.69956833]
[1759056560237,4.04911071,201.26,201.22,38.73]
[1759056560406,0.69,201.26,201.22,38.14]
[1759056560610,0.7,201.25,201.22,38.14]
[1759056562424,0.7,201.25,201.21,5.55990853]
[1759056562626,0.7,201.25,201.22,38.14]
[1759056563636,0.7,201.25,201.21,5.55990853]
[1759056563860,0.7,201.25,201.22,38.14]
[1759056565233,30.9682563,201.28,201.17,160.72283651]
[1759056565583,0.7,201.24,201.19,0.59]
[1759056565934,0.7,201.24,201.19,4.97037933]
[1759056566132,0.7,201.24,201.2,0.59]
[1759056566349,0.7,201.24,201.21,38.14]
[1759056566929,0.7,201.24,201.2,0.59]
[1759056567131,0.7,201.24,201.21,38.14]
[1759056567330,0.7,201.23,201.18,5.56061403]
[1759056567634,0.7,201.22,201.21,38.14]
[1759056568661,3.3569251,201.26,201.21,38.14]
[1759056568837,0.7,201.25,201.21,38.14]
[1759056569034,0.7,201.24,201.18,5.56061403]
[1759056569255,0.7,201.23,201.19,38.14]
[1759056569431,4.96820349,201.28,201.19,38.14]
[1759056569630,0.7,201.23,201.19,38.73]
[1759056572334,8.32548183,201.26,201.19,38.73]
[1759056572540,4.05679191,201.25,201.19,38.14]
[1759056572738,0.7,201.24,201.19,38.14]
[1759056572939,0.7,201.23,201.19,38.14]
[1759056573163,0.7,201.24,201.2,0.59]
[1759056573675,0.7,201.23,201.2,0.59]
[1759056573873,0.7,201.23,201.19,38.14]
[1759056574076,0.7,201.23,201.19,38.73]
[1759056574760,0.7,201.23,201.19,43.70038511]
[1759056576949,0.7,201.26,201.2,0.59]
[1759056577150,0.7,201.25,201.2,0.59]
[1759056577553,26.0,201.29,201.2,0.59]
[1759056577864,0.7,201.24,201.2,0.59]
[1759056578045,0.7,201.24,201.2,5.56004168]
[1759056581941,0.7,201.24,201.21,38.12]
[1759056582645,0.7,201.24,201.21,53.07327103]
[1759056583255,4.05676121,201.26,201.21,15.54327103]
[1759056583455,0.7,201.25,201.21,53.66327103]
[1759056584162,0.7,201.24,201.21,53.66327103]
[1759056585961,0.7,201.24,201.21,15.54327103]
[1759056586158,0.7,201.24,201.21,53.66327103]
[1759056586664,0.7,201.25,201.21,53.66327103]
[1759056587546,0.7,201.25,201.21,58.63316078]
[1759056588449,0.7,201.25,201.21,20.51316078]
[1759056588652,0.7,201.25,201.22,38.12]
[1759056588850,0.7,201.24,201.21,15.54327103]
[1759056589062,0.7,201.24,201.22,38.12]
[1759056590359,0.7,201.24,201.21,53.66327103]
[1759056590753,0.7,201.24,201.21,38.71]
[1759056590959,0.7,201.24,201.21,53.66327103]
[1759056591262,0.7,201.24,201.21,38.71]
[1759056591652,3.35711893,201.26,201.22,4.96821345]
[1759056591858,30.96800237,201.29,201.22,4.96821345]
[1759056592058,4.04711573,201.28,201.22,4.96821345]
[1759056592259,4.04711573,201.27,201.22,4.96821345]
[1759056592453,4.04711573,201.26,201.22,4.96821345]
[1759056592648,0.69,201.25,201.22,4.96821345]
[1759056593676,30.96800237,201.29,201.22,4.96821345]
[1759056593875,0.69,201.25,201.22,4.96821345]
[1759056595360,0.69,201.25,201.21,38.71]
[1759056595588,0.69,201.25,201.21,0.59]
[1759056595775,0.69,201.25,201.21,53.66327103]
[1759056596271,0.69,201.25,201.21,15.54327103]
[1759056596477,0.69,201.25,201.21,53.66327103]
[1759056598580,0.69,201.25,201.21,15.54327103]
[1759056598781,0.69,201.25,201.21,53.66327103]
[1759056601983,0.69,201.25,201.21,15.54327103]
[1759056602181,0.69,201.25,201.21,53.66327103]
[1759056602484,0.69,201.25,201.21,15.54327103]
[1759056602658,0.69,201.25,201.21,53.66327103]
[1759056608684,0.69,201.25,201.21,15.54327103]
[1759056608989,0.69,201.25,201.22,38.12]
[1759056610285,0.69,201.25,201.21,15.54327103]
[1759056610620,0.71,201.24,201.21,14.95327103]
[1759056610883,0.71,201.24,201.21,38.12]
[1759056612494,0.71,201.24,201.21,38.71]
[1759056613072,0.71,201.26,201.22,0.59]
[1759056613377,4.06971604,201.25,201.21,53.0740164]
[1759056613561,0.71,201.25,201.21,53.6640164]
[1759056613966,0.71,201.25,201.21,38.71]
[1759056614190,3.35982452,201.24,201.21,38.71]
[1759056614406,0.71,201.25,201.21,38.71]
[1759056614562,3.35970509,201.24,201.21,38.71]
[1759056614767,0.71,201.25,201.21,38.71]
[1759056614989,3.35970509,201.24,201.21,38.71]
[1759056615182,0.71,201.25,201.21,38.71]
[1759056615384,3.35959473,201.24,201.21,38.71]
[1759056615596,0.71,201.25,201.21,38.71]
[1759056615797,3.35959473,201.24,201.21,38.71]
[1759056615992,0.71,201.25,201.21,38.71]
[1759056618114,0.71,201.25,201.21,0.59]
[1759056618274,0.71,201.25,201.21,38.71]
[1759056619191,3.35952083,201.24,201.21,38.71]
[1759056619399,0.71,201.25,201.21,38.71]
[1759056619592,0.71,201.25,201.21,38.12]
[1759056619788,0.71,201.25,201.21,38.71]
[1759056619997,0.71,201.25,201.21,53.6640164]
[1759056620502,0.71,201.25,201.22,0.59]
[1759056620885,0.66,201.26,201.22,0.59]
[1759056621090,4.0193999,201.25,201.21,53.0740164]
[1759056621291,0.66,201.25,201.21,53.6640164]
[1759056622682,0.66,201.25,201.21,38.71]
[1759056624483,3.35942164,201.24,201.21,38.71]
[1759056624684,0.66,201.25,201.21,38.71]
[1759056624897,3.35953478,201.24,201.21,38.12]
[1759056625090,0.66,201.25,201.21,38.71]
[1759056625306,3.35951007,201.24,201.21,38.71]
[1759056625509,0.66,201.25,201.21,38.71]
[1759056625698,3.35943126,201.24,201.21,38.71]
[1759056626013,0.66,201.25,201.21,38.71]
[1759056626303,3.35941866,201.24,201.21,38.71]
[1759056626511,0.66,201.25,201.21,38.71]
[1759056626813,3.35933807,201.24,201.21,38.71]
[1759056626987,0.66,201.25,201.21,38.71]
[1759056627183,0.66,201.24,201.2,14.9540164]
[1759056627408,0.66,201.24,201.21,38.1]
[1759056631314,0.66,201.24,201.2,15.5440164]
[1759056631501,0.66,201.24,201.21,38.1]
[1759056633311,4.96822884,201.28,201.15,160.8]
[1759056633312,30.01918705,201.23,201.15,0.1]
[1759056633491,3.35918705,201.22,201.15,0.1]
[1759056633692,3.35918705,201.21,201.15,0.1]
[1759056633920,3.35918705,201.2,201.15,0.1]
[1759056634114,31.62962697,201.23,201.15,0.1]
[1759056634322,3.35764474,201.22,201.15,0.1]
[1759056634618,3.35764474,201.21,201.15,0.1]
[1759056634804,31.62962697,201.23,201.15,0.1]
[1759056634997,3.35632102,201.22,201.15,0.1]
[1759056635313,3.35632102,201.21,201.15,0.1]
[1759056635515,31.62962697,201.23,201.15,0.1]
[1759056635724,3.35530533,201.22,201.15,0.1]
[1759056635896,3.35530533,201.21,201.15,0.1]
[1759056636092,31.62962697,201.23,201.15,0.1]
[1759056636293,3.35530637,201.22,201.15,0.1]
[1759056636503,3.35530637,201.21,201.15,0.1]
[1759056636788,0.66,201.21,201.15,0.1]
[1759056644837,0.66,201.25,201.17,13.59559401]
[1759056645136,0.66,201.27,201.18,38.69]
[1759056645320,0.66,201.27,201.19,14.18559401]
[1759056645524,0.66,201.28,201.2,0.59]
[1759056646225,0.66,201.28,201.21,4.96698052]
[1759056646413,0.66,201.28,201.22,38.69]
[1759056646810,0.66,201.28,201.23,4.96943795]
[1759056647052,0.66,201.27,201.23,20.51047331]
[1759056647614,26.0,201.3,201.23,20.51047331]
[1759056647824,0.66,201.29,201.23,20.51047331]
[1759056648035,0.66,201.28,201.23,20.51047331]
[1759056648238,0.66,201.27,201.23,20.51047331]
[1759056652429,0.7,201.29,201.24,5.55905467]
[1759056652634,0.7,201.29,201.25,38.69]
[1759056653024,0.7,201.29,201.25,0.59]
[1759056653226,0.7,201.29,201.25,38.69]
[1759056653838,0.7,201.28,201.25,38.1]
[1759056654017,0.7,201.27,201.25,38.1]